[Event "Titled Tuesday Blitz May 31 Early 2022"]
[White "Hua, Lefong"]
[Black "Sargissyan, Sargis"]
[WhiteFideId "2602253"]
[BlackFideId "13303210"]
[WhiteElo "2639"]
[BlackElo "2174"]
[Result "1-0"]
[Round "04"]
[TimeControl "180+1"]
[Date "2022.06.01"]
[WhiteClock "0:00:15"]
[BlackClock "0:00:01"]

1. d4 {[%clk 0:03:00]}  Nf6 {[%clk 0:02:58]} 2. c4 {[%clk 0:03:00]}  g6 {[%clk 0:02:58]} 3. Nc3 {[%clk 0:02:59]}  d5 {[%clk 0:02:59]} 4. cxd5 {[%clk 0:03:00]}  Nxd5 {[%clk 0:02:59]} 5. e4 {[%clk 0:03:01]}  Nxc3 {[%clk 0:02:59]} 6. bxc3 {[%clk 0:03:02]}  Bg7 {[%clk 0:03:00]} 7. Nf3 {[%clk 0:03:02]}  c5 {[%clk 0:03:01]} 8. Rb1 {[%clk 0:03:03]}  O-O {[%clk 0:03:00]} 9. Be2 {[%clk 0:03:03]}  cxd4 {[%clk 0:02:56]} 10. cxd4 {[%clk 0:03:04]}  Nc6 {[%clk 0:02:57]} 11. d5 {[%clk 0:03:04]}  Na5 {[%clk 0:02:37]} 12. O-O {[%clk 0:02:59]}  Bg4 {[%clk 0:02:37]} 13. Bg5 {[%clk 0:02:49]}  Rc8 {[%clk 0:02:35]} 14. h3 {[%clk 0:02:40]}  Bxf3 {[%clk 0:02:34]} 15. Bxf3 {[%clk 0:02:41]}  b6 {[%clk 0:02:34]} 16. Be2 {[%clk 0:02:15]}  h6 {[%clk 0:02:30]} 17. Bh4 {[%clk 0:02:13]}  Nc4 {[%clk 0:02:27]} 18. Rb4 {[%clk 0:02:06]}  Nd6 {[%clk 0:02:07]} 19. Ba6 {[%clk 0:01:59]}  Rc5 {[%clk 0:02:08]} 20. Qe2 {[%clk 0:01:48]}  Ra5 {[%clk 0:02:00]} 21. Rd1 {[%clk 0:01:41]}  Qc7 {[%clk 0:01:51]} 22. Bg3 {[%clk 0:01:34]}  Qc5 {[%clk 0:01:37]} 23. Rb3 {[%clk 0:01:28]}  b5 {[%clk 0:01:35]} 24. Bxd6 {[%clk 0:01:27]}  exd6 {[%clk 0:01:35]} 25. Rxb5 {[%clk 0:01:19]}  Rxb5 {[%clk 0:01:32]} 26. Bxb5 {[%clk 0:01:19]}  Rb8 {[%clk 0:01:30]} 27. a4 {[%clk 0:01:18]}  Bd4 {[%clk 0:01:25]} 28. Rf1 {[%clk 0:01:09]}  a6 {[%clk 0:01:20]} 29. Bxa6 {[%clk 0:01:07]}  Rb2 {[%clk 0:01:21]} 30. Qf3 {[%clk 0:01:07]}  Qa5 {[%clk 0:00:56]} 31. Bb5 {[%clk 0:01:05]}  Qd2 {[%clk 0:00:56]} 32. g3 {[%clk 0:00:57]}  Rc2 {[%clk 0:00:23]} 33. Kg2 {[%clk 0:00:56]}  Rc3 {[%clk 0:00:23]} 34. Qe2 {[%clk 0:00:53]}  Qg5 {[%clk 0:00:22]} 35. h4 {[%clk 0:00:51]}  Qd8 {[%clk 0:00:21]} 36. Rd1 {[%clk 0:00:47]}  Bc5 {[%clk 0:00:20]} 37. Rd3 {[%clk 0:00:44]}  Rc1 {[%clk 0:00:19]} 38. Qf3 {[%clk 0:00:45]}  Qa5 {[%clk 0:00:18]} 39. Rd1 {[%clk 0:00:43]}  Rc3 {[%clk 0:00:16]} 40. Qe2 {[%clk 0:00:41]}  Qb4 {[%clk 0:00:16]} 41. h5 {[%clk 0:00:32]}  Kg7 {[%clk 0:00:15]} 42. hxg6 {[%clk 0:00:32]}  fxg6 {[%clk 0:00:16]} 43. Bd7 {[%clk 0:00:32]}  Qb3 {[%clk 0:00:15]} 44. Rf1 {[%clk 0:00:28]}  Qc4 {[%clk 0:00:13]} 45. Qxc4 {[%clk 0:00:23]}  Rxc4 {[%clk 0:00:13]} 46. Re1 {[%clk 0:00:22]}  Rc2 {[%clk 0:00:13]} 47. Rf1 {[%clk 0:00:22]}  Ra2 {[%clk 0:00:13]} 48. Kf3 {[%clk 0:00:19]}  Kf6 {[%clk 0:00:13]} 49. Bb5 {[%clk 0:00:17]}  Ke5 {[%clk 0:00:13]} 50. Be8 {[%clk 0:00:15]}  g5 {[%clk 0:00:12]} 51. Bb5 {[%clk 0:00:15]}  Ra3+ {[%clk 0:00:12]} 52. Kg2 {[%clk 0:00:15]}  Kxe4 {[%clk 0:00:12]} 53. Bc6 {[%clk 0:00:13]}  Ke5 {[%clk 0:00:12]} 54. Re1+ {[%clk 0:00:13]}  Kf5 {[%clk 0:00:11]} 55. Re8 {[%clk 0:00:13]}  Ra2 {[%clk 0:00:11]} 56. Rf8+ {[%clk 0:00:13]}  Kg6 {[%clk 0:00:11]} 57. Be8+ {[%clk 0:00:13]}  Kg7 {[%clk 0:00:12]} 58. Rf5 {[%clk 0:00:13]}  Rc2 {[%clk 0:00:09]} 59. g4 {[%clk 0:00:13]}  Ra2 {[%clk 0:00:08]} 60. Rf7+ {[%clk 0:00:13]}  Kg8 {[%clk 0:00:08]} 61. Rf6 {[%clk 0:00:14]}  Kg7 {[%clk 0:00:08]} 62. Rf5 {[%clk 0:00:14]}  Kg8 {[%clk 0:00:08]} 63. Bb5 {[%clk 0:00:15]}  Kg7 {[%clk 0:00:08]} 64. Kg3 {[%clk 0:00:14]}  Ra3+ {[%clk 0:00:08]} 65. f3 {[%clk 0:00:15]}  Ra2 {[%clk 0:00:09]} 66. Bc6 {[%clk 0:00:14]}  Bd4 {[%clk 0:00:08]} 67. f4 {[%clk 0:00:13]}  gxf4+ {[%clk 0:00:06]} 68. Kxf4 {[%clk 0:00:14]}  Ra3 {[%clk 0:00:05]} 69. Ke4 {[%clk 0:00:14]}  Bc5 {[%clk 0:00:04]} 70. Rf1 {[%clk 0:00:14]}  Re3+ {[%clk 0:00:04]} 71. Kf5 {[%clk 0:00:14]}  Re5+ {[%clk 0:00:04]} 72. Kf4 {[%clk 0:00:14]}  Be3+ {[%clk 0:00:05]} 73. Kf3 {[%clk 0:00:14]}  Bc5 {[%clk 0:00:05]} 74. Rb1 {[%clk 0:00:14]}  Re3+ {[%clk 0:00:05]} 75. Kf4 {[%clk 0:00:14]}  Re1 {[%clk 0:00:04]} 76. Rb8 {[%clk 0:00:14]}  Rf1+ {[%clk 0:00:03]} 77. Kg3 {[%clk 0:00:14]}  Re1 {[%clk 0:00:02]} 78. Rb7+ {[%clk 0:00:14]}  Kf6 {[%clk 0:00:01]} 79. a5 {[%clk 0:00:14]}  Ra1 {[%clk 0:00:01]} 80. Rb5 {[%clk 0:00:14]}  Ra3+ {[%clk 0:00:01]} 81. Kg2 {[%clk 0:00:14]}  Kg5 {[%clk 0:00:01]} 82. Bd7 {[%clk 0:00:15]}  Kf4 {[%clk 0:00:01]} 83. Bc8 {[%clk 0:00:14]}  Ra2+ {[%clk 0:00:02]} 84. Kf1 {[%clk 0:00:15]}  Kf3 {[%clk 0:00:01]} 85. Ke1 {[%clk 0:00:15]}  Ra1+ {[%clk 0:00:01]} 86. Kd2 {[%clk 0:00:15]} 1-0


[Site "https://www.chess.com"]

[Event "Titled Tuesday Blitz May 31 Early 2022"]
[White "Ider, Borya"]
[Black "Stepanencu, Nicodim-Cosmin"]
[WhiteFideId "4901134"]
[BlackFideId "1256220"]
[WhiteElo "2512"]
[BlackElo "1945"]
[Result "1/2-1/2"]
[Round "04"]
[TimeControl "180+1"]
[Date "2022.06.01"]
[WhiteClock "0:00:41"]
[BlackClock "0:00:34"]

1. Nf3 {[%clk 0:03:00]}  Nf6 {[%clk 0:02:59]} 2. g3 {[%clk 0:03:01]}  b5 {[%clk 0:02:54]} 3. Bg2 {[%clk 0:03:02]}  Bb7 {[%clk 0:02:55]} 4. O-O {[%clk 0:03:01]}  e6 {[%clk 0:02:55]} 5. d4 {[%clk 0:02:59]}  d5 {[%clk 0:02:55]} 6. a4 {[%clk 0:02:57]}  b4 {[%clk 0:02:55]} 7. Nbd2 {[%clk 0:02:50]}  c5 {[%clk 0:02:53]} 8. c3 {[%clk 0:02:47]}  a5 {[%clk 0:02:49]} 9. Qc2 {[%clk 0:02:40]}  Nbd7 {[%clk 0:02:41]} 10. Re1 {[%clk 0:02:30]}  cxd4 {[%clk 0:02:35]} 11. cxd4 {[%clk 0:02:26]}  Rc8 {[%clk 0:02:36]} 12. Qd3 {[%clk 0:02:23]}  Qb6 {[%clk 0:02:36]} 13. Nb3 {[%clk 0:02:23]}  Ne4 {[%clk 0:02:29]} 14. Qb5 {[%clk 0:02:16]}  Ra8 {[%clk 0:02:17]} 15. Ne5 {[%clk 0:01:43]}  Qxb5 {[%clk 0:02:11]} 16. axb5 {[%clk 0:01:42]}  a4 {[%clk 0:02:01]} 17. Nxd7 {[%clk 0:01:42]}  Kxd7 {[%clk 0:01:58]} 18. Bxe4 {[%clk 0:01:40]}  axb3 {[%clk 0:01:54]} 19. Rxa8 {[%clk 0:01:39]}  Bxa8 {[%clk 0:01:55]} 20. Bd3 {[%clk 0:01:36]}  Bd6 {[%clk 0:01:55]} 21. Bd2 {[%clk 0:01:15]}  Kc7 {[%clk 0:01:48]} 22. Ra1 {[%clk 0:01:10]}  Bb7 {[%clk 0:01:47]} 23. e3 {[%clk 0:00:59]}  g6 {[%clk 0:01:26]} 24. Be2 {[%clk 0:00:59]}  Kb6 {[%clk 0:01:24]} 25. Bd1 {[%clk 0:00:59]}  Ra8 {[%clk 0:01:16]} 26. Rc1 {[%clk 0:00:55]}  Rc8 {[%clk 0:01:00]} 27. Ra1 {[%clk 0:00:55]}  Ra8 {[%clk 0:00:58]} 28. Rxa8 {[%clk 0:00:55]}  Bxa8 {[%clk 0:00:59]} 29. Bxb3 {[%clk 0:00:55]}  Kxb5 {[%clk 0:01:00]} 30. f4 {[%clk 0:00:53]}  Bc6 {[%clk 0:00:56]} 31. Kf2 {[%clk 0:00:54]}  Ka5 {[%clk 0:00:57]} 32. Bc2 {[%clk 0:00:52]}  Ba4 {[%clk 0:00:50]} 33. b3 {[%clk 0:00:53]}  Bb5 {[%clk 0:00:46]} 34. g4 {[%clk 0:00:53]}  f5 {[%clk 0:00:46]} 35. Kg3 {[%clk 0:00:50]}  Be7 {[%clk 0:00:44]} 36. h4 {[%clk 0:00:48]}  h5 {[%clk 0:00:41]} 37. gxh5 {[%clk 0:00:45]}  gxh5 {[%clk 0:00:42]} 38. Bd1 {[%clk 0:00:40]}  Be8 {[%clk 0:00:42]} 39. Be2 {[%clk 0:00:39]}  Bf7 {[%clk 0:00:37]} 40. Be1 {[%clk 0:00:40]}  Be8 {[%clk 0:00:36]} 41. Kg2 {[%clk 0:00:39]}  Bf7 {[%clk 0:00:35]} 42. Bf2 {[%clk 0:00:40]}  Be8 {[%clk 0:00:36]} 43. Kf1 {[%clk 0:00:40]}  Bb5 {[%clk 0:00:34]} 44. Ke1 {[%clk 0:00:35]}  Bxe2 {[%clk 0:00:34]} 45. Kxe2 {[%clk 0:00:36]}  Kb5 {[%clk 0:00:34]} 46. Kd3 {[%clk 0:00:36]}  Bf6 {[%clk 0:00:30]} 47. Kc2 {[%clk 0:00:36]}  Be7 {[%clk 0:00:31]} 48. Kb2 {[%clk 0:00:36]}  Bf6 {[%clk 0:00:31]} 49. Be1 {[%clk 0:00:37]}  Be7 {[%clk 0:00:31]} 50. Kc2 {[%clk 0:00:37]}  Bf6 {[%clk 0:00:32]} 51. Kd3 {[%clk 0:00:38]}  Be7 {[%clk 0:00:32]} 52. Ke2 {[%clk 0:00:38]}  Bf6 {[%clk 0:00:33]} 53. Kf3 {[%clk 0:00:39]}  Be7 {[%clk 0:00:33]} 54. Ke2 {[%clk 0:00:39]}  Bf6 {[%clk 0:00:34]} 55. Kf3 {[%clk 0:00:40]}  Be7 {[%clk 0:00:34]} 56. Ke2 {[%clk 0:00:41]} 1/2-1/2


[Site "https://www.chess.com"]

[Event "Titled Tuesday Blitz May 31 Early 2022"]
[White "Jakubowska, Anna"]
[Black "Kalashian, David"]
[WhiteFideId "1121952"]
[BlackFideId "13302418"]
[WhiteElo "1878"]
[BlackElo "2490"]
[Result "0-1"]
[Round "04"]
[TimeControl "180+1"]
[Date "2022.06.01"]
[WhiteClock "0:00:09"]
[BlackClock "0:00:21"]

1. e4 {[%clk 0:03:00]}  c6 {[%clk 0:02:59]} 2. d4 {[%clk 0:03:00]}  g6 {[%clk 0:03:00]} 3. Nc3 {[%clk 0:03:00]}  Bg7 {[%clk 0:03:00]} 4. a4 {[%clk 0:02:59]}  d6 {[%clk 0:03:00]} 5. g3 {[%clk 0:02:57]}  Nf6 {[%clk 0:03:01]} 6. Bg2 {[%clk 0:02:58]}  O-O {[%clk 0:03:01]} 7. Nge2 {[%clk 0:02:59]}  Nbd7 {[%clk 0:03:01]} 8. O-O {[%clk 0:02:59]}  e5 {[%clk 0:03:02]} 9. h3 {[%clk 0:02:58]}  Re8 {[%clk 0:03:02]} 10. Be3 {[%clk 0:02:58]}  exd4 {[%clk 0:03:01]} 11. Nxd4 {[%clk 0:02:58]}  Nc5 {[%clk 0:03:01]} 12. f3 {[%clk 0:02:32]}  d5 {[%clk 0:03:00]} 13. exd5 {[%clk 0:02:30]}  Rxe3 {[%clk 0:02:58]} 14. dxc6 {[%clk 0:02:26]}  bxc6 {[%clk 0:02:52]} 15. Nxc6 {[%clk 0:02:25]}  Qxd1 {[%clk 0:02:51]} 16. Raxd1 {[%clk 0:02:26]}  Ba6 {[%clk 0:02:48]} 17. Rf2 {[%clk 0:02:23]}  Re6 {[%clk 0:02:44]} 18. f4 {[%clk 0:02:18]}  Bb7 {[%clk 0:02:36]} 19. Nd4 {[%clk 0:02:13]}  Rd6 {[%clk 0:02:34]} 20. b4 {[%clk 0:02:07]}  Ne6 {[%clk 0:02:31]} 21. Bxb7 {[%clk 0:02:04]}  Rad8 {[%clk 0:02:26]} 22. Ncb5 {[%clk 0:01:59]}  Nxd4 {[%clk 0:02:08]} 23. Nxd6 {[%clk 0:01:56]}  Rxd6 {[%clk 0:02:07]} 24. Rfd2 {[%clk 0:01:48]}  Rb6 {[%clk 0:01:45]} 25. Rxd4 {[%clk 0:01:41]}  Rxb7 {[%clk 0:01:45]} 26. b5 {[%clk 0:01:40]}  Bf8 {[%clk 0:01:41]} 27. Kg2 {[%clk 0:01:36]}  Kg7 {[%clk 0:01:41]} 28. c4 {[%clk 0:01:32]}  Rc7 {[%clk 0:01:41]} 29. g4 {[%clk 0:01:24]}  Bc5 {[%clk 0:01:38]} 30. Rd8 {[%clk 0:01:16]}  Be7 {[%clk 0:01:37]} 31. R8d4 {[%clk 0:01:15]}  Bc5 {[%clk 0:01:38]} 32. Rd8 {[%clk 0:01:01]}  Bb4 {[%clk 0:01:38]} 33. g5 {[%clk 0:00:48]}  Nh5 {[%clk 0:01:37]} 34. R1d4 {[%clk 0:00:44]}  Bc5 {[%clk 0:01:23]} 35. Re4 {[%clk 0:00:44]}  f5 {[%clk 0:01:23]} 36. Ree8 {[%clk 0:00:39]}  Nxf4+ {[%clk 0:01:13]} 37. Kg3 {[%clk 0:00:32]}  Nh5+ {[%clk 0:01:07]} 38. Kf3 {[%clk 0:00:32]}  Kf7 {[%clk 0:01:02]} 39. Rc8 {[%clk 0:00:31]}  Rd7 {[%clk 0:00:50]} 40. Red8 {[%clk 0:00:29]}  Rxd8 {[%clk 0:00:47]} 41. Rxd8 {[%clk 0:00:30]}  Ng7 {[%clk 0:00:47]} 42. Rc8 {[%clk 0:00:29]}  Ne6 {[%clk 0:00:47]} 43. h4 {[%clk 0:00:27]}  Ke7 {[%clk 0:00:42]} 44. a5 {[%clk 0:00:26]}  Kd6 {[%clk 0:00:40]} 45. Rc6+ {[%clk 0:00:25]}  Kd7 {[%clk 0:00:40]} 46. Ra6 {[%clk 0:00:20]}  Bd4 {[%clk 0:00:26]} 47. Ke2 {[%clk 0:00:12]}  Nc7 {[%clk 0:00:20]} 48. Kd3 {[%clk 0:00:07]}  Nxa6 {[%clk 0:00:19]} 49. Kxd4 {[%clk 0:00:07]}  Nc7 {[%clk 0:00:18]} 50. b6 {[%clk 0:00:07]}  axb6 {[%clk 0:00:19]} 51. axb6 {[%clk 0:00:08]}  Na6 {[%clk 0:00:19]} 52. Ke5 {[%clk 0:00:07]}  Kc6 {[%clk 0:00:18]} 53. Kf6 {[%clk 0:00:07]}  f4 {[%clk 0:00:18]} 54. Kg7 {[%clk 0:00:07]}  f3 {[%clk 0:00:18]} 55. Kxh7 {[%clk 0:00:08]}  f2 {[%clk 0:00:19]} 56. Kxg6 {[%clk 0:00:09]}  f1=Q {[%clk 0:00:19]} 57. h5 {[%clk 0:00:09]}  Qd3+ {[%clk 0:00:20]} 58. Kg7 {[%clk 0:00:09]}  Qd4+ {[%clk 0:00:19]} 59. Kg6 {[%clk 0:00:09]}  Qd6+ {[%clk 0:00:19]} 60. Kg7 {[%clk 0:00:09]}  Qe7+ {[%clk 0:00:19]} 61. Kg6 {[%clk 0:00:09]}  Nc5 {[%clk 0:00:20]} 62. h6 {[%clk 0:00:09]}  Ne6 {[%clk 0:00:20]} 63. h7 {[%clk 0:00:09]}  Qg7+ {[%clk 0:00:21]} 64. Kf5 {[%clk 0:00:09]}  Nxg5 {[%clk 0:00:21]} 0-1


[Site "https://www.chess.com"]

[Event "Titled Tuesday Blitz May 31 Early 2022"]
[White "Jakubowski, Krzysztof"]
[Black "Harsha Bharathakoti"]
[WhiteFideId "1112848"]
[BlackFideId "5078776"]
[WhiteElo "2365"]
[BlackElo "2575"]
[Result "0-1"]
[Round "04"]
[TimeControl "180+1"]
[Date "2022.05.31"]
[WhiteClock "0:00:05"]
[BlackClock "0:00:12"]

1. e4 {[%clk 0:03:00]}  c6 {[%clk 0:03:00]} 2. Nf3 {[%clk 0:02:58]}  d5 {[%clk 0:03:01]} 3. d3 {[%clk 0:02:58]}  g6 {[%clk 0:02:58]} 4. Nbd2 {[%clk 0:02:57]}  Bg7 {[%clk 0:02:58]} 5. g3 {[%clk 0:02:57]}  e5 {[%clk 0:02:58]} 6. Bg2 {[%clk 0:02:56]}  Nd7 {[%clk 0:02:49]} 7. O-O {[%clk 0:02:55]}  Ne7 {[%clk 0:02:47]} 8. a4 {[%clk 0:02:46]}  O-O {[%clk 0:02:46]} 9. a5 {[%clk 0:02:44]}  Qc7 {[%clk 0:02:30]} 10. b4 {[%clk 0:02:36]}  a6 {[%clk 0:01:55]} 11. Bb2 {[%clk 0:02:24]}  Re8 {[%clk 0:01:48]} 12. Re1 {[%clk 0:02:09]}  f6 {[%clk 0:00:59]} 13. c4 {[%clk 0:02:03]}  d4 {[%clk 0:00:56]} 14. c5 {[%clk 0:02:03]}  Nf8 {[%clk 0:00:51]} 15. Nc4 {[%clk 0:02:00]}  Be6 {[%clk 0:00:52]} 16. Qc2 {[%clk 0:01:48]}  h5 {[%clk 0:00:46]} 17. Bc1 {[%clk 0:01:33]}  Nh7 {[%clk 0:00:46]} 18. Re2 {[%clk 0:01:24]}  Rad8 {[%clk 0:00:43]} 19. Bd2 {[%clk 0:01:15]}  Rf8 {[%clk 0:00:44]} 20. Rf1 {[%clk 0:01:14]}  Kh8 {[%clk 0:00:42]} 21. Bc1 {[%clk 0:01:13]}  Ng8 {[%clk 0:00:40]} 22. Nfd2 {[%clk 0:01:09]}  Nh6 {[%clk 0:00:31]} 23. h3 {[%clk 0:01:00]}  Ng5 {[%clk 0:00:28]} 24. Kh2 {[%clk 0:00:59]}  Nh7 {[%clk 0:00:22]} 25. Nd6 {[%clk 0:00:53]}  Nf7 {[%clk 0:00:22]} 26. N2c4 {[%clk 0:00:53]}  Nxd6 {[%clk 0:00:17]} 27. Nxd6 {[%clk 0:00:54]}  Rg8 {[%clk 0:00:10]} 28. f4 {[%clk 0:00:53]}  Bf8 {[%clk 0:00:11]} 29. fxe5 {[%clk 0:00:49]}  fxe5 {[%clk 0:00:12]} 30. Nc4 {[%clk 0:00:47]}  Bg7 {[%clk 0:00:11]} 31. Ref2 {[%clk 0:00:45]}  Rdf8 {[%clk 0:00:12]} 32. Nd6 {[%clk 0:00:34]}  Rxf2 {[%clk 0:00:12]} 33. Rxf2 {[%clk 0:00:33]}  Rf8 {[%clk 0:00:13]} 34. Qe2 {[%clk 0:00:19]}  Qd7 {[%clk 0:00:13]} 35. Bd2 {[%clk 0:00:18]}  Kg8 {[%clk 0:00:13]} 36. Rxf8+ {[%clk 0:00:15]}  Bxf8 {[%clk 0:00:14]} 37. Nc4 {[%clk 0:00:14]}  Bxc4 {[%clk 0:00:14]} 38. dxc4 {[%clk 0:00:15]}  Nf6 {[%clk 0:00:11]} 39. Qf3 {[%clk 0:00:15]}  Be7 {[%clk 0:00:09]} 40. Kg1 {[%clk 0:00:14]}  Qe6 {[%clk 0:00:09]} 41. Bf1 {[%clk 0:00:14]}  Nh7 {[%clk 0:00:10]} 42. h4 {[%clk 0:00:12]}  Nf6 {[%clk 0:00:10]} 43. Kf2 {[%clk 0:00:12]}  Ng4+ {[%clk 0:00:10]} 44. Ke1 {[%clk 0:00:11]}  Nf6 {[%clk 0:00:10]} 45. Kd1 {[%clk 0:00:10]}  Bf8 {[%clk 0:00:11]} 46. Kc2 {[%clk 0:00:10]}  Kh7 {[%clk 0:00:11]} 47. Kd3 {[%clk 0:00:10]}  Bh6 {[%clk 0:00:12]} 48. Bxh6 {[%clk 0:00:08]}  Kxh6 {[%clk 0:00:13]} 49. Qf2 {[%clk 0:00:07]}  Kg7 {[%clk 0:00:13]} 50. Be2 {[%clk 0:00:06]}  Qh3 {[%clk 0:00:12]} 51. b5 {[%clk 0:00:06]}  Qh1 {[%clk 0:00:11]} 52. Qf3 {[%clk 0:00:05]}  Qb1+ {[%clk 0:00:11]} 53. Kd2 {[%clk 0:00:05]}  Nxe4+ {[%clk 0:00:12]} 0-1


[Site "https://www.chess.com"]

[Event "Titled Tuesday Blitz May 31 Early 2022"]
[White "Jobava, Baadur"]
[Black "Durarbayli, Vasif"]
[WhiteFideId "13601520"]
[BlackFideId "13402935"]
[WhiteElo "2617"]
[BlackElo "2528"]
[Result "1-0"]
[Round "04"]
[TimeControl "180+1"]
[Date "2022.05.31"]
[WhiteClock "0:00:51"]
[BlackClock "0:00:01"]

1. b3 {[%clk 0:03:00]}  e5 {[%clk 0:02:57]} 2. Bb2 {[%clk 0:03:01]}  Nc6 {[%clk 0:02:58]} 3. Nf3 {[%clk 0:03:01]}  e4 {[%clk 0:02:58]} 4. Nd4 {[%clk 0:03:02]}  Nf6 {[%clk 0:02:57]} 5. e3 {[%clk 0:03:02]}  d5 {[%clk 0:02:46]} 6. c4 {[%clk 0:03:00]}  Nxd4 {[%clk 0:02:46]} 7. Bxd4 {[%clk 0:03:01]}  Be7 {[%clk 0:02:31]} 8. Nc3 {[%clk 0:03:00]}  c6 {[%clk 0:02:19]} 9. cxd5 {[%clk 0:02:58]}  cxd5 {[%clk 0:02:20]} 10. Bb5+ {[%clk 0:02:57]}  Bd7 {[%clk 0:02:18]} 11. Bxd7+ {[%clk 0:02:57]}  Qxd7 {[%clk 0:02:19]} 12. O-O {[%clk 0:02:58]}  O-O {[%clk 0:02:13]} 13. d3 {[%clk 0:02:57]}  Qe6 {[%clk 0:01:53]} 14. Rc1 {[%clk 0:02:47]}  Rfc8 {[%clk 0:01:52]} 15. dxe4 {[%clk 0:02:45]}  dxe4 {[%clk 0:01:49]} 16. h3 {[%clk 0:02:45]}  Rc6 {[%clk 0:01:46]} 17. Nb5 {[%clk 0:02:39]}  Qd7 {[%clk 0:01:11]} 18. Bxf6 {[%clk 0:02:25]}  Qxd1 {[%clk 0:01:08]} 19. Rfxd1 {[%clk 0:02:26]}  Bxf6 {[%clk 0:00:57]} 20. Nd6 {[%clk 0:02:21]}  Ra6 {[%clk 0:00:51]} 21. Nxe4 {[%clk 0:02:10]}  Rxa2 {[%clk 0:00:51]} 22. Rd7 {[%clk 0:02:09]}  Bb2 {[%clk 0:00:47]} 23. Rcd1 {[%clk 0:02:05]}  Ra1 {[%clk 0:00:38]} 24. Rxa1 {[%clk 0:02:04]}  Bxa1 {[%clk 0:00:38]} 25. Rxb7 {[%clk 0:02:04]}  a5 {[%clk 0:00:39]} 26. g4 {[%clk 0:02:02]}  f6 {[%clk 0:00:37]} 27. Kg2 {[%clk 0:01:55]}  a4 {[%clk 0:00:32]} 28. bxa4 {[%clk 0:01:56]}  Rxa4 {[%clk 0:00:32]} 29. Rb8+ {[%clk 0:01:56]}  Kf7 {[%clk 0:00:31]} 30. Nd6+ {[%clk 0:01:57]}  Ke6 {[%clk 0:00:31]} 31. Nf5 {[%clk 0:01:56]}  g6 {[%clk 0:00:29]} 32. Rb6+ {[%clk 0:01:55]}  Kf7 {[%clk 0:00:28]} 33. Rb7+ {[%clk 0:01:55]}  Ke6 {[%clk 0:00:26]} 34. Ng3 {[%clk 0:01:51]}  h6 {[%clk 0:00:23]} 35. Rg7 {[%clk 0:01:50]}  g5 {[%clk 0:00:10]} 36. Nf5 {[%clk 0:01:49]}  Ra2 {[%clk 0:00:11]} 37. Kf3 {[%clk 0:01:23]}  Bc3 {[%clk 0:00:11]} 38. Re7+ {[%clk 0:01:05]}  Kd5 {[%clk 0:00:11]} 39. Rd7+ {[%clk 0:01:04]}  Ke6 {[%clk 0:00:04]} 40. Rd1 {[%clk 0:01:01]}  h5 {[%clk 0:00:03]} 41. Ng7+ {[%clk 0:01:01]}  Kf7 {[%clk 0:00:03]} 42. Nxh5 {[%clk 0:01:02]}  Bb4 {[%clk 0:00:03]} 43. Ng3 {[%clk 0:01:00]}  Ba5 {[%clk 0:00:01]} 44. Nf5 {[%clk 0:00:59]}  Bb4 {[%clk 0:00:02]} 45. h4 {[%clk 0:00:58]}  gxh4 {[%clk 0:00:02]} 46. Nxh4 {[%clk 0:00:59]}  Ke6 {[%clk 0:00:02]} 47. Nf5 {[%clk 0:00:59]}  Bc5 {[%clk 0:00:02]} 48. Nd4+ {[%clk 0:00:58]}  Kf7 {[%clk 0:00:02]} 49. Ne2 {[%clk 0:00:57]}  Bb4 {[%clk 0:00:02]} 50. Nf4 {[%clk 0:00:57]}  Bd2 {[%clk 0:00:02]} 51. Rh1 {[%clk 0:00:54]}  Ba5 {[%clk 0:00:03]} 52. Rh7+ {[%clk 0:00:52]}  Kg8 {[%clk 0:00:03]} 53. Ra7 {[%clk 0:00:53]}  Ra3 {[%clk 0:00:01]} 54. Ke4 {[%clk 0:00:51]} 1-0


[Site "https://www.chess.com"]